[Event "January 9 Late 2024"]
[Site "https://www.chess.com"]
[Date "2024.01.09"]
[Round "8"]
[White "Khater, Sherif"]
[Black "Msellek, Ilyass"]
[Result "1-0"]
[Board "62"]
[TimeControl "180+1"]
[WhiteFideId "2034280"]
[BlackFideId "675938"]
[WhiteElo "2532"]
[BlackElo "2681"]
[WhiteTeam "USA"]
[BlackTeam "MAR"]
[WhiteClock "0:00:16"]
[BlackClock "0:00:14"]

1. b4 {[%clk 0:03:00]}  e6 {[%clk 0:02:55]} 2. Bb2 {[%clk 0:03:00]}  Nf6 {[%clk 0:02:54]} 3. b5 {[%clk 0:02:59]}  a6 {[%clk 0:02:54]} 4. a4 {[%clk 0:02:58]}  axb5 {[%clk 0:02:53]} 5. axb5 {[%clk 0:02:59]}  Rxa1 {[%clk 0:02:54]} 6. Bxa1 {[%clk 0:03:00]}  c6 {[%clk 0:02:54]} 7. bxc6 {[%clk 0:02:55]}  bxc6 {[%clk 0:02:55]} 8. e3 {[%clk 0:02:54]}  d5 {[%clk 0:02:55]} 9. Nf3 {[%clk 0:02:51]}  Be7 {[%clk 0:02:51]} 10. Ne5 {[%clk 0:02:51]}  O-O {[%clk 0:02:51]} 11. Be2 {[%clk 0:02:50]}  Qc7 {[%clk 0:02:50]} 12. O-O {[%clk 0:02:50]}  Nbd7 {[%clk 0:02:51]} 13. f4 {[%clk 0:02:50]}  Bd6 {[%clk 0:02:51]} 14. Nxd7 {[%clk 0:02:48]}  Nxd7 {[%clk 0:02:51]} 15. c4 {[%clk 0:02:41]}  Bb7 {[%clk 0:02:31]} 16. Bd3 {[%clk 0:02:09]}  f5 {[%clk 0:02:02]} 17. Nc3 {[%clk 0:02:08]}  Nc5 {[%clk 0:02:00]} 18. Be2 {[%clk 0:02:03]}  e5 {[%clk 0:01:55]} 19. fxe5 {[%clk 0:01:55]}  Bxe5 {[%clk 0:01:51]} 20. h3 {[%clk 0:01:53]}  d4 {[%clk 0:01:52]} 21. exd4 {[%clk 0:01:50]}  Bxd4+ {[%clk 0:01:52]} 22. Kh1 {[%clk 0:01:51]}  Qg3 {[%clk 0:01:47]} 23. Rf3 {[%clk 0:01:44]}  Qh4 {[%clk 0:01:34]} 24. Qf1 {[%clk 0:01:31]}  Nb3 {[%clk 0:01:31]} 25. Rd3 {[%clk 0:01:03]}  c5 {[%clk 0:01:26]} 26. Nd5 {[%clk 0:01:02]}  Nxa1 {[%clk 0:01:19]} 27. g3 {[%clk 0:00:56]}  Qe4+ {[%clk 0:01:07]} 28. Bf3 {[%clk 0:00:55]}  Qe5 {[%clk 0:01:07]} 29. Qb1 {[%clk 0:00:42]}  Qxg3 {[%clk 0:00:59]} 30. Ne7+ {[%clk 0:00:33]}  Kh8 {[%clk 0:00:59]} 31. Bxb7 {[%clk 0:00:32]}  Qh4 {[%clk 0:00:54]} 32. Nd5 {[%clk 0:00:27]}  f4 {[%clk 0:00:55]} 33. Rf3 {[%clk 0:00:26]}  Nc2 {[%clk 0:00:52]} 34. Qf1 {[%clk 0:00:18]}  Ne1 {[%clk 0:00:48]} 35. Rxf4 {[%clk 0:00:15]}  Rxf4 {[%clk 0:00:48]} 36. Nxf4 {[%clk 0:00:14]}  Bf2 {[%clk 0:00:43]} 37. Qe2 {[%clk 0:00:12]}  Qd8 {[%clk 0:00:09]} 38. Qxf2 {[%clk 0:00:11]}  Nc2 {[%clk 0:00:10]} 39. Ne6 {[%clk 0:00:10]}  Qb8 {[%clk 0:00:09]} 40. Qf8+ {[%clk 0:00:10]}  Qxf8 {[%clk 0:00:10]} 41. Nxf8 {[%clk 0:00:11]}  Nd4 {[%clk 0:00:10]} 42. Bd5 {[%clk 0:00:11]}  g6 {[%clk 0:00:10]} 43. Ne6 {[%clk 0:00:11]}  Nf5 {[%clk 0:00:10]} 44. Nxc5 {[%clk 0:00:12]}  Kg7 {[%clk 0:00:11]} 45. Ne4 {[%clk 0:00:12]}  Kh6 {[%clk 0:00:10]} 46. Kg2 {[%clk 0:00:13]}  Nd4 {[%clk 0:00:11]} 47. Kf2 {[%clk 0:00:13]}  Nf5 {[%clk 0:00:11]} 48. Ke2 {[%clk 0:00:13]}  Kh5 {[%clk 0:00:12]} 49. Kd3 {[%clk 0:00:14]}  Kh4 {[%clk 0:00:13]} 50. c5 {[%clk 0:00:14]}  Kxh3 {[%clk 0:00:13]} 51. Be6 {[%clk 0:00:14]}  Kg4 {[%clk 0:00:13]} 52. c6 {[%clk 0:00:14]}  Kf4 {[%clk 0:00:13]} 53. Bxf5 {[%clk 0:00:14]}  gxf5 {[%clk 0:00:14]} 54. c7 {[%clk 0:00:14]}  fxe4+ {[%clk 0:00:14]} 55. Ke2 {[%clk 0:00:15]}  h5 {[%clk 0:00:14]} 56. c8=Q {[%clk 0:00:16]}  h4 {[%clk 0:00:14]} 57. Qf8+ {[%clk 0:00:16]} 1-0

[Event "January 9 Late 2024"]
[Site "https://www.chess.com"]
[Date "2024.01.09"]
[Round "8"]
[White "Sherman, Raem"]
[Black "Novik, Maxim"]
[Result "1-0"]
[Board "65"]
[TimeControl "180+1"]
[WhiteFideId "2822288"]
[BlackFideId "4102924"]
[WhiteElo "2663"]
[BlackElo "2519"]
[WhiteTeam "ISR"]
[BlackTeam "LTU"]
[WhiteClock "0:00:18"]
[BlackClock "0:00:09"]

1. e4 {[%clk 0:03:00]}  c6 {[%clk 0:02:59]} 2. d4 {[%clk 0:03:00]}  d5 {[%clk 0:02:59]} 3. Nd2 {[%clk 0:03:00]}  dxe4 {[%clk 0:02:59]} 4. Nxe4 {[%clk 0:03:01]}  Bf5 {[%clk 0:03:00]} 5. Ng3 {[%clk 0:02:59]}  Bg6 {[%clk 0:03:00]} 6. h4 {[%clk 0:02:55]}  h6 {[%clk 0:02:59]} 7. Nf3 {[%clk 0:02:56]}  e6 {[%clk 0:03:00]} 8. h5 {[%clk 0:02:54]}  Bh7 {[%clk 0:02:56]} 9. Bd3 {[%clk 0:02:55]}  Bxd3 {[%clk 0:02:56]} 10. Qxd3 {[%clk 0:02:56]}  Nf6 {[%clk 0:02:57]} 11. Bd2 {[%clk 0:02:56]}  c5 {[%clk 0:02:56]} 12. Qb3 {[%clk 0:02:40]}  Qc7 {[%clk 0:02:41]} 13. O-O-O {[%clk 0:02:33]}  c4 {[%clk 0:02:41]} 14. Qb5+ {[%clk 0:02:29]}  Qc6 {[%clk 0:02:41]} 15. Qa5 {[%clk 0:02:10]}  b6 {[%clk 0:02:35]} 16. Qe5 {[%clk 0:01:49]}  Nbd7 {[%clk 0:02:28]} 17. Qe2 {[%clk 0:01:46]}  Bd6 {[%clk 0:02:26]} 18. Ne5 {[%clk 0:01:43]}  Qa4 {[%clk 0:02:20]} 19. Qxc4 {[%clk 0:01:32]}  Qxc4 {[%clk 0:02:03]} 20. Nxc4 {[%clk 0:01:33]}  Bc7 {[%clk 0:02:03]} 21. Rhe1 {[%clk 0:01:32]}  O-O {[%clk 0:01:56]} 22. Ne5 {[%clk 0:01:31]}  b5 {[%clk 0:01:29]} 23. Nxd7 {[%clk 0:01:27]}  Nxd7 {[%clk 0:01:28]} 24. Ne4 {[%clk 0:01:27]}  Rad8 {[%clk 0:01:17]} 25. Kb1 {[%clk 0:01:23]}  f5 {[%clk 0:01:13]} 26. Nc3 {[%clk 0:01:19]}  a6 {[%clk 0:01:01]} 27. Rxe6 {[%clk 0:01:19]}  Nf6 {[%clk 0:01:00]} 28. Rxa6 {[%clk 0:01:03]}  Rxd4 {[%clk 0:00:44]} 29. Nxb5 {[%clk 0:01:02]}  Rd7 {[%clk 0:00:44]} 30. Nxc7 {[%clk 0:01:03]}  Rxc7 {[%clk 0:00:44]} 31. Bc3 {[%clk 0:00:52]}  Nxh5 {[%clk 0:00:43]} 32. Rad6 {[%clk 0:00:46]}  Rff7 {[%clk 0:00:38]} 33. a4 {[%clk 0:00:46]}  Nf4 {[%clk 0:00:29]} 34. g3 {[%clk 0:00:42]}  Ne2 {[%clk 0:00:26]} 35. Be5 {[%clk 0:00:40]}  f4 {[%clk 0:00:24]} 36. Rd8+ {[%clk 0:00:32]}  Kh7 {[%clk 0:00:24]} 37. Bxc7 {[%clk 0:00:32]}  Rxc7 {[%clk 0:00:24]} 38. Re8 {[%clk 0:00:31]}  f3 {[%clk 0:00:19]} 39. Rd3 {[%clk 0:00:29]}  Rf7 {[%clk 0:00:19]} 40. Ree3 {[%clk 0:00:26]}  Ng1 {[%clk 0:00:18]} 41. a5 {[%clk 0:00:25]}  g5 {[%clk 0:00:18]} 42. b4 {[%clk 0:00:24]}  g4 {[%clk 0:00:18]} 43. a6 {[%clk 0:00:23]}  Nh3 {[%clk 0:00:12]} 44. Rd2 {[%clk 0:00:24]}  h5 {[%clk 0:00:10]} 45. b5 {[%clk 0:00:23]}  h4 {[%clk 0:00:10]} 46. gxh4 {[%clk 0:00:20]}  Nf4 {[%clk 0:00:08]} 47. b6 {[%clk 0:00:19]}  Ng2 {[%clk 0:00:08]} 48. Re6 {[%clk 0:00:17]}  g3 {[%clk 0:00:07]} 49. fxg3 {[%clk 0:00:18]}  f2 {[%clk 0:00:07]} 50. Rxf2 {[%clk 0:00:18]}  Rxf2 {[%clk 0:00:08]} 51. b7 {[%clk 0:00:19]}  Rf1+ {[%clk 0:00:08]} 52. Kb2 {[%clk 0:00:19]}  Ne3 {[%clk 0:00:09]} 53. Rxe3 {[%clk 0:00:18]}  Rf6 {[%clk 0:00:07]} 54. Rb3 {[%clk 0:00:19]}  Rxa6 {[%clk 0:00:07]} 55. b8=Q {[%clk 0:00:17]}  Rf6 {[%clk 0:00:07]} 56. Qe5 {[%clk 0:00:17]}  Rf7 {[%clk 0:00:07]} 57. Qh5+ {[%clk 0:00:16]}  Kg7 {[%clk 0:00:07]} 58. Qxf7+ {[%clk 0:00:17]}  Kxf7 {[%clk 0:00:07]} 59. Rd3 {[%clk 0:00:18]}  Ke6 {[%clk 0:00:08]} 60. Rd1 {[%clk 0:00:19]}  Ke5 {[%clk 0:00:08]} 61. c4 {[%clk 0:00:19]}  Ke4 {[%clk 0:00:09]} 62. c5 {[%clk 0:00:20]}  Ke3 {[%clk 0:00:09]} 63. c6 {[%clk 0:00:18]}  Ke2 {[%clk 0:00:09]} 64. Rd8 {[%clk 0:00:18]} 1-0

[Event "January 9 Late 2024"]
[Site "https://www.chess.com"]
[Date "2024.01.09"]
[Round "8"]
[White "Lizak, Peter"]
[Black "Lopusiewicz, Piotr"]
[Result "0-1"]
[Board "68"]
[TimeControl "180+1"]
[WhiteFideId "731595"]
[BlackFideId "1116029"]
[WhiteElo "2635"]
[BlackElo "2511"]
[WhiteTeam "HUN"]
[BlackTeam "POL"]
[WhiteClock "0:00:19"]
[BlackClock "0:00:16"]

1. d4 {[%clk 0:02:58]}  Nf6 {[%clk 0:02:59]} 2. Nc3 {[%clk 0:02:58]}  d5 {[%clk 0:02:59]} 3. Bf4 {[%clk 0:02:59]}  c5 {[%clk 0:02:58]} 4. e3 {[%clk 0:02:59]}  cxd4 {[%clk 0:02:58]} 5. exd4 {[%clk 0:03:00]}  a6 {[%clk 0:02:58]} 6. Nf3 {[%clk 0:03:00]}  Nc6 {[%clk 0:02:58]} 7. Ne5 {[%clk 0:03:01]}  e6 {[%clk 0:02:58]} 8. Be2 {[%clk 0:03:01]}  Nxe5 {[%clk 0:02:48]} 9. dxe5 {[%clk 0:02:47]}  Nd7 {[%clk 0:02:48]} 10. O-O {[%clk 0:02:48]}  Be7 {[%clk 0:02:47]} 11. Bd3 {[%clk 0:02:42]}  b5 {[%clk 0:02:46]} 12. Re1 {[%clk 0:02:42]}  Bb7 {[%clk 0:02:46]} 13. Qh5 {[%clk 0:02:41]}  g6 {[%clk 0:02:28]} 14. Qf3 {[%clk 0:02:32]}  g5 {[%clk 0:02:23]} 15. Bg3 {[%clk 0:02:19]}  h5 {[%clk 0:02:23]} 16. h3 {[%clk 0:02:15]}  Qc7 {[%clk 0:02:09]} 17. Ne2 {[%clk 0:01:38]}  Nxe5 {[%clk 0:01:57]} 18. Bxe5 {[%clk 0:01:38]}  Qxe5 {[%clk 0:01:57]} 19. Ng3 {[%clk 0:01:39]}  Qf4 {[%clk 0:01:49]} 20. Qe2 {[%clk 0:01:27]}  g4 {[%clk 0:01:34]} 21. h4 {[%clk 0:01:05]}  Bxh4 {[%clk 0:01:08]} 22. Nf5 {[%clk 0:01:05]}  Bf6 {[%clk 0:01:02]} 23. g3 {[%clk 0:01:03]}  Qc7 {[%clk 0:01:00]} 24. c3 {[%clk 0:00:51]}  O-O-O {[%clk 0:00:58]} 25. Nd4 {[%clk 0:00:49]}  h4 {[%clk 0:00:55]} 26. Qe3 {[%clk 0:00:42]}  hxg3 {[%clk 0:00:54]} 27. Qxg3 {[%clk 0:00:35]}  Qxg3+ {[%clk 0:00:49]} 28. fxg3 {[%clk 0:00:36]}  Rh3 {[%clk 0:00:42]} 29. Ne2 {[%clk 0:00:32]}  Rdh8 {[%clk 0:00:38]} 30. Rf1 {[%clk 0:00:32]}  Bd8 {[%clk 0:00:34]} 31. Kf2 {[%clk 0:00:30]}  f5 {[%clk 0:00:31]} 32. Ke3 {[%clk 0:00:26]}  Bb6+ {[%clk 0:00:29]} 33. Kd2 {[%clk 0:00:26]}  Rh2 {[%clk 0:00:28]} 34. a4 {[%clk 0:00:25]}  bxa4 {[%clk 0:00:23]} 35. Rxa4 {[%clk 0:00:25]}  R8h3 {[%clk 0:00:18]} 36. Kd1 {[%clk 0:00:24]}  Rh1 {[%clk 0:00:16]} 37. Rxh1 {[%clk 0:00:23]}  Rxh1+ {[%clk 0:00:16]} 38. Kd2 {[%clk 0:00:24]}  Bd8 {[%clk 0:00:16]} 39. Bxa6 {[%clk 0:00:23]}  Bg5+ {[%clk 0:00:17]} 40. Kd3 {[%clk 0:00:23]}  e5 {[%clk 0:00:16]} 41. Bxb7+ {[%clk 0:00:20]}  Kxb7 {[%clk 0:00:16]} 42. c4 {[%clk 0:00:18]}  Rd1+ {[%clk 0:00:15]} 43. Kc2 {[%clk 0:00:18]}  Rd2+ {[%clk 0:00:16]} 44. Kc3 {[%clk 0:00:19]}  Rxe2 {[%clk 0:00:16]} 45. cxd5 {[%clk 0:00:19]}  Re3+ {[%clk 0:00:15]} 46. Kc4 {[%clk 0:00:19]}  Re4+ {[%clk 0:00:15]} 47. Kb5 {[%clk 0:00:19]}  Rxa4 {[%clk 0:00:16]} 48. Kxa4 {[%clk 0:00:19]}  f4 {[%clk 0:00:16]} 0-1

[Event "January 9 Late 2024"]
[Site "https://www.chess.com"]
[Date "2024.01.09"]
[Round "8"]
[White "Garakov, Mikhael"]
[Black "Peczely, Sebastian Zsombor"]
[Result "1-0"]
[Board "69"]
[TimeControl "180+1"]
[WhiteFideId "4169034"]
[BlackFideId "750964"]
[WhiteElo "2632"]
[BlackElo "2509"]
[WhiteTeam "RUS"]
[BlackTeam "HUN"]
[WhiteClock "0:00:04"]
[BlackClock "0:00:00"]

1. e4 {[%clk 0:02:49]}  c5 {[%clk 0:02:59]} 2. Nf3 {[%clk 0:02:48]}  e6 {[%clk 0:02:55]} 3. c4 {[%clk 0:02:48]}  Nc6 {[%clk 0:02:54]} 4. Nc3 {[%clk 0:02:48]}  Nd4 {[%clk 0:02:48]} 5. Be2 {[%clk 0:02:46]}  g6 {[%clk 0:02:43]} 6. O-O {[%clk 0:02:42]}  Bg7 {[%clk 0:02:44]} 7. Nxd4 {[%clk 0:02:31]}  cxd4 {[%clk 0:02:42]} 8. Nb5 {[%clk 0:02:31]}  Qb6 {[%clk 0:02:29]} 9. Qa4 {[%clk 0:02:22]}  a6 {[%clk 0:02:26]} 10. Qa3 {[%clk 0:02:20]}  Bf8 {[%clk 0:02:23]} 11. Qa4 {[%clk 0:02:16]}  Qc6 {[%clk 0:01:59]} 12. b3 {[%clk 0:01:59]}  Rb8 {[%clk 0:01:11]} 13. Nxd4 {[%clk 0:01:54]}  Qxe4 {[%clk 0:01:12]} 14. Bb2 {[%clk 0:01:45]}  Bg7 {[%clk 0:01:11]} 15. Bf3 {[%clk 0:01:42]}  Qd3 {[%clk 0:01:04]} 16. c5 {[%clk 0:01:06]}  Qxd2 {[%clk 0:00:44]} 17. Rab1 {[%clk 0:01:04]}  e5 {[%clk 0:00:40]} 18. Rfd1 {[%clk 0:00:51]}  Qf4 {[%clk 0:00:35]} 19. g3 {[%clk 0:00:49]}  Qf6 {[%clk 0:00:22]} 20. Bg2 {[%clk 0:00:49]}  Ne7 {[%clk 0:00:20]} 21. Nf3 {[%clk 0:00:25]}  Qc6 {[%clk 0:00:18]} 22. Qc4 {[%clk 0:00:18]}  b5 {[%clk 0:00:18]} 23. Qc1 {[%clk 0:00:15]}  Qc7 {[%clk 0:00:16]} 24. Re1 {[%clk 0:00:13]}  Nc6 {[%clk 0:00:14]} 25. Ng5 {[%clk 0:00:07]}  O-O {[%clk 0:00:14]} 26. Ne4 {[%clk 0:00:07]}  Bb7 {[%clk 0:00:12]} 27. Nd6 {[%clk 0:00:07]}  Nd8 {[%clk 0:00:08]} 28. Nxb7 {[%clk 0:00:07]}  Nxb7 {[%clk 0:00:08]} 29. b4 {[%clk 0:00:08]}  a5 {[%clk 0:00:08]} 30. a3 {[%clk 0:00:08]}  axb4 {[%clk 0:00:09]} 31. axb4 {[%clk 0:00:08]}  d6 {[%clk 0:00:08]} 32. c6 {[%clk 0:00:08]}  Nd8 {[%clk 0:00:08]} 33. Qc2 {[%clk 0:00:08]}  Ne6 {[%clk 0:00:08]} 34. Bd5 {[%clk 0:00:07]}  Qb6 {[%clk 0:00:07]} 35. Qb3 {[%clk 0:00:06]}  Nd4 {[%clk 0:00:06]} 36. Bxd4 {[%clk 0:00:06]}  Qxd4 {[%clk 0:00:06]} 37. Ra1 {[%clk 0:00:06]}  Qb6 {[%clk 0:00:04]} 38. Ra5 {[%clk 0:00:05]}  Rbc8 {[%clk 0:00:03]} 39. Qf3 {[%clk 0:00:05]}  Kh8 {[%clk 0:00:02]} 40. Rea1 {[%clk 0:00:05]}  f5 {[%clk 0:00:02]} 41. Ra7 {[%clk 0:00:04]}  e4 {[%clk 0:00:00]} 42. Qd1 {[%clk 0:00:04]} 1-0

[Event "January 9 Late 2024"]
[Site "https://www.chess.com"]
[Date "2024.01.09"]
[Round "8"]
[White "Poltorak, Sebastian"]
[Black "Bellissimo, Joseph F."]
[Result "0-1"]
[Board "70"]
[TimeControl "180+1"]
[WhiteFideId "1199498"]
[BlackFideId "2609843"]
[WhiteElo "2631"]
[BlackElo "2503"]
[WhiteTeam "POL"]
[BlackTeam "CAN"]
[WhiteClock "0:00:00"]
[BlackClock "0:00:45"]

1. d4 {[%clk 0:03:00]}  Nf6 {[%clk 0:02:57]} 2. c4 {[%clk 0:02:59]}  e6 {[%clk 0:02:57]} 3. Nc3 {[%clk 0:02:59]}  d5 {[%clk 0:02:56]} 4. cxd5 {[%clk 0:02:59]}  exd5 {[%clk 0:02:56]} 5. Bg5 {[%clk 0:02:59]}  c6 {[%clk 0:02:51]} 6. e3 {[%clk 0:02:59]}  Na6 {[%clk 0:02:47]} 7. Bxa6 {[%clk 0:02:37]}  bxa6 {[%clk 0:02:47]} 8. Qa4 {[%clk 0:02:37]}  Qb6 {[%clk 0:02:45]} 9. Bxf6 {[%clk 0:02:20]}  gxf6 {[%clk 0:02:39]} 10. Nxd5 {[%clk 0:02:18]}  Qb7 {[%clk 0:02:22]} 11. Rc1 {[%clk 0:02:03]}  Be6 {[%clk 0:02:01]} 12. Nf4 {[%clk 0:00:43]}  Qxb2 {[%clk 0:01:09]} 13. Qxc6+ {[%clk 0:00:42]}  Ke7 {[%clk 0:01:09]} 14. Qc5+ {[%clk 0:00:26]}  Ke8 {[%clk 0:01:06]} 15. Qc6+ {[%clk 0:00:26]}  Ke7 {[%clk 0:01:06]} 16. d5 {[%clk 0:00:20]}  Rc8 {[%clk 0:01:00]} 17. Qxc8 {[%clk 0:00:04]}  Bxc8 {[%clk 0:01:01]} 18. Rxc8 {[%clk 0:00:04]}  Kd7 {[%clk 0:00:57]} 19. Rc4 {[%clk 0:00:01]}  Bb4+ {[%clk 0:00:55]} 20. Rxb4 {[%clk 0:00:01]}  Qxb4+ {[%clk 0:00:55]} 21. Ke2 {[%clk 0:00:02]}  Qb1 {[%clk 0:00:48]} 22. Kf3 {[%clk 0:00:02]}  Rg8 {[%clk 0:00:46]} 23. h4 {[%clk 0:00:01]}  f5 {[%clk 0:00:46]} 24. Rh3 {[%clk 0:00:01]}  Qe4+ {[%clk 0:00:45]} 25. Ke2 {[%clk 0:00:00]}  Rb8 {[%clk 0:00:45]} 0-1

[Event "January 9 Late 2024"]
[Site "https://www.chess.com"]
[Date "2024.01.09"]
[Round "8"]
[White "Onufrienko, Vladislav"]
[Black "Ladan, Nicholas"]
[Result "0-1"]
[Board "74"]
[TimeControl "180+1"]
[WhiteFideId "13804332"]
[BlackFideId "30918855"]
[WhiteElo "2609"]
[BlackElo "2499"]
[WhiteTeam "KGZ"]
[BlackTeam "USA"]
[WhiteClock "0:02:07"]
[BlackClock "0:01:08"]

1. e4 {[%clk 0:03:00]}  e5 {[%clk 0:02:59]} 2. Nf3 {[%clk 0:03:00]}  Nc6 {[%clk 0:03:00]} 3. Nc3 {[%clk 0:03:00]}  Nf6 {[%clk 0:02:59]} 4. h3 {[%clk 0:03:01]}  a6 {[%clk 0:02:58]} 5. d4 {[%clk 0:02:57]}  exd4 {[%clk 0:02:57]} 6. Nxd4 {[%clk 0:02:58]}  Bb4 {[%clk 0:02:56]} 7. Nxc6 {[%clk 0:02:56]}  bxc6 {[%clk 0:02:51]} 8. Bd3 {[%clk 0:02:57]}  d5 {[%clk 0:02:41]} 9. exd5 {[%clk 0:02:58]}  cxd5 {[%clk 0:02:42]} 10. O-O {[%clk 0:02:58]}  O-O {[%clk 0:02:40]} 11. Qf3 {[%clk 0:02:58]}  h6 {[%clk 0:02:36]} 12. Ne2 {[%clk 0:02:44]}  Bb7 {[%clk 0:02:23]} 13. Ng3 {[%clk 0:02:41]}  Rb8 {[%clk 0:02:14]} 14. Nf5 {[%clk 0:02:37]}  Ne4 {[%clk 0:01:57]} 15. Bxh6 {[%clk 0:02:30]}  gxh6 {[%clk 0:01:52]} 16. Bxe4 {[%clk 0:02:31]}  dxe4 {[%clk 0:01:48]} 17. Nxh6+ {[%clk 0:02:30]}  Kg7 {[%clk 0:01:29]} 18. Nf5+ {[%clk 0:02:30]}  Kg6 {[%clk 0:01:24]} 19. Qg4+ {[%clk 0:02:27]}  Qg5 {[%clk 0:01:24]} 20. Ne7+ {[%clk 0:02:14]}  Bxe7 {[%clk 0:01:23]} 21. Qd7 {[%clk 0:02:11]}  e3 {[%clk 0:01:17]} 22. f3 {[%clk 0:02:11]}  e2 {[%clk 0:01:12]} 23. Rfe1 {[%clk 0:02:10]}  Rbd8 {[%clk 0:01:08]} 24. Qxc7 {[%clk 0:02:10]}  Qc5+ {[%clk 0:01:06]} 25. Qxc5 {[%clk 0:02:08]}  Bxc5+ {[%clk 0:01:07]} 26. Kh2 {[%clk 0:02:08]}  Rfe8 {[%clk 0:01:07]} 27. c3 {[%clk 0:02:07]}  Bf2 {[%clk 0:01:07]} 28. b4 {[%clk 0:02:07]}  Bxe1 {[%clk 0:01:08]} 0-1

[Event "January 9 Late 2024"]
[Site "https://www.chess.com"]
[Date "2024.01.09"]
[Round "8"]
[White "Espinoza Villanueva, Rodrigo"]
[Black "Novikov, Evgenij"]
[Result "0-1"]
[Board "75"]
[TimeControl "180+1"]
[WhiteFideId "5140188"]
[BlackFideId "4125380"]
[WhiteElo "2600"]
[BlackElo "2494"]
[WhiteTeam "MEX"]
[BlackTeam "RUS"]
[WhiteClock "0:00:17"]
[BlackClock "0:00:05"]

1. e4 {[%clk 0:03:00]}  c6 {[%clk 0:02:59]} 2. Nf3 {[%clk 0:02:59]}  d5 {[%clk 0:03:00]} 3. exd5 {[%clk 0:03:00]}  cxd5 {[%clk 0:03:00]} 4. Ne5 {[%clk 0:03:00]}  Nf6 {[%clk 0:03:00]} 5. d4 {[%clk 0:03:00]}  Nc6 {[%clk 0:02:57]} 6. c3 {[%clk 0:02:59]}  Qc7 {[%clk 0:02:52]} 7. f4 {[%clk 0:02:56]}  Bf5 {[%clk 0:02:45]} 8. Bb5 {[%clk 0:02:49]}  a6 {[%clk 0:02:40]} 9. Qa4 {[%clk 0:02:46]}  Bd7 {[%clk 0:02:24]} 10. Nxd7 {[%clk 0:02:39]}  Nxd7 {[%clk 0:02:18]} 11. Bd3 {[%clk 0:02:34]}  e6 {[%clk 0:02:15]} 12. O-O {[%clk 0:02:34]}  Bd6 {[%clk 0:02:13]} 13. Nd2 {[%clk 0:02:32]}  Bxf4 {[%clk 0:02:01]} 14. Nf3 {[%clk 0:02:31]}  Bxc1 {[%clk 0:02:00]} 15. Raxc1 {[%clk 0:02:32]}  O-O {[%clk 0:01:33]} 16. Rfe1 {[%clk 0:02:24]}  Rae8 {[%clk 0:01:25]} 17. Qc2 {[%clk 0:02:06]}  g6 {[%clk 0:01:20]} 18. c4 {[%clk 0:01:59]}  Nb4 {[%clk 0:01:15]} 19. Qb3 {[%clk 0:01:55]}  Nxd3 {[%clk 0:01:15]} 20. Qxd3 {[%clk 0:01:55]}  dxc4 {[%clk 0:01:14]} 21. Rxc4 {[%clk 0:01:56]}  Qb6 {[%clk 0:01:10]} 22. b3 {[%clk 0:01:54]}  e5 {[%clk 0:01:09]} 23. Kh1 {[%clk 0:01:34]}  exd4 {[%clk 0:01:08]} 24. Rxe8 {[%clk 0:01:31]}  Rxe8 {[%clk 0:01:09]} 25. h3 {[%clk 0:01:32]}  Ne5 {[%clk 0:00:52]} 26. Nxe5 {[%clk 0:01:28]}  Rxe5 {[%clk 0:00:53]} 27. Qxd4 {[%clk 0:01:23]}  Qxd4 {[%clk 0:00:41]} 28. Rxd4 {[%clk 0:01:24]}  Re2 {[%clk 0:00:41]} 29. a4 {[%clk 0:01:20]}  Re7 {[%clk 0:00:32]} 30. Kh2 {[%clk 0:01:16]}  Kf8 {[%clk 0:00:32]} 31. Kg3 {[%clk 0:01:14]}  Ke8 {[%clk 0:00:31]} 32. Kf4 {[%clk 0:01:12]}  h6 {[%clk 0:00:30]} 33. Rb4 {[%clk 0:01:01]}  Kd8 {[%clk 0:00:28]} 34. h4 {[%clk 0:01:00]}  Kc7 {[%clk 0:00:28]} 35. h5 {[%clk 0:01:00]}  Kc6 {[%clk 0:00:23]} 36. g4 {[%clk 0:00:58]}  Kc5 {[%clk 0:00:22]} 37. Rc4+ {[%clk 0:00:58]}  Kd5 {[%clk 0:00:23]} 38. Rc8 {[%clk 0:00:45]}  b5 {[%clk 0:00:20]} 39. axb5 {[%clk 0:00:41]}  axb5 {[%clk 0:00:21]} 40. Rh8 {[%clk 0:00:40]}  gxh5 {[%clk 0:00:17]} 41. gxh5 {[%clk 0:00:39]}  Re6 {[%clk 0:00:17]} 42. Kf5 {[%clk 0:00:35]}  Kc5 {[%clk 0:00:17]} 43. Rh7 {[%clk 0:00:33]}  Kb4 {[%clk 0:00:13]} 44. Rxf7 {[%clk 0:00:32]}  Re1 {[%clk 0:00:12]} 45. Kg6 {[%clk 0:00:30]}  Re6+ {[%clk 0:00:12]} 46. Kf5 {[%clk 0:00:27]}  Rb6 {[%clk 0:00:09]} 47. Re7 {[%clk 0:00:19]}  Kxb3 {[%clk 0:00:09]} 48. Re3+ {[%clk 0:00:18]}  Kc2 {[%clk 0:00:08]} 49. Re2+ {[%clk 0:00:18]}  Kd3 {[%clk 0:00:08]} 50. Rb2 {[%clk 0:00:18]}  b4 {[%clk 0:00:08]} 51. Rb3+ {[%clk 0:00:18]}  Kc2 {[%clk 0:00:08]} 52. Rg3 {[%clk 0:00:18]}  b3 {[%clk 0:00:08]} 53. Rg2+ {[%clk 0:00:19]}  Kc3 {[%clk 0:00:08]} 54. Rg6 {[%clk 0:00:20]}  Rb5+ {[%clk 0:00:07]} 55. Kf4 {[%clk 0:00:19]}  Rxh5 {[%clk 0:00:06]} 56. Rc6+ {[%clk 0:00:19]}  Kb2 {[%clk 0:00:06]} 57. Kg4 {[%clk 0:00:19]}  Rh2 {[%clk 0:00:05]} 58. Kg3 {[%clk 0:00:19]}  Rc2 {[%clk 0:00:04]} 59. Rxh6 {[%clk 0:00:19]}  Ka2 {[%clk 0:00:04]} 60. Ra6+ {[%clk 0:00:19]}  Kb1 {[%clk 0:00:04]} 61. Kf3 {[%clk 0:00:19]}  b2 {[%clk 0:00:05]} 62. Ke3 {[%clk 0:00:19]}  Kc1 {[%clk 0:00:03]} 63. Rb6 {[%clk 0:00:16]}  b1=Q {[%clk 0:00:03]} 64. Rxb1+ {[%clk 0:00:17]}  Kxb1 {[%clk 0:00:04]} 65. Kd3 {[%clk 0:00:17]}  Kb2 {[%clk 0:00:05]} 66. Kd4 {[%clk 0:00:17]}  Rc3 {[%clk 0:00:05]} 0-1